fUSD/lending_fUSD_20250222
["ID","MTS","AMOUNT","RATE_DAILY","PERIOD"]
[354023114,1740183066066,-695.9,0.00011776,2]
[354023115,1740183066075,-500.0,0.00011776,2]
[354023116,1740183066085,-481.84846715,0.00011776,2]
[354023117,1740183066095,-500.0,0.00011776,2]
[354023118,1740183066105,-500.0,0.00011776,2]
[354023119,1740183066115,-500.0,0.00011776,2]
[354023120,1740183066125,-1020.33,0.00011776,2]
[354023121,1740183066135,-500.0,0.00011776,2]
[354023122,1740183066145,-500.0,0.00011776,2]
[354023123,1740183066154,-220.68884138,0.00011776,2]
[354023124,1740183066164,-507.16,0.00011776,2]
[354023125,1740183066173,-500.0,0.00011776,2]
[354023126,1740183066183,-500.0,0.00011776,2]
[354023127,1740183066192,-795.59,0.00011776,2]
[354023128,1740183066202,-500.0,0.00011776,2]
[354023129,1740183066210,-669.24,0.00011776,2]
[354023130,1740183066220,-500.0,0.00011776,2]
[354023131,1740183066230,-500.0,0.00011776,2]
[354023132,1740183066239,-500.0,0.00011776,2]
[354023133,1740183066248,-1119.15,0.00011776,2]
[354023134,1740183066258,-500.0,0.00011776,2]
[354023135,1740183066268,-500.0,0.00011776,2]
[354023136,1740183066278,-543.65,0.00011776,2]
[354023137,1740183066287,-500.0,0.00011776,2]
[354023138,1740183066297,-500.0,0.00011776,2]
[354023139,1740183066307,-500.0,0.00011776,2]
[354023140,1740183066316,-500.0,0.00011776,2]
[354023141,1740183066325,-696.77,0.00011776,2]
[354023142,1740183066335,-515.61,0.00011776,2]
[354023143,1740183066345,-500.0,0.00011776,2]
[354023144,1740183066354,-500.0,0.00011776,2]
[354023145,1740183066363,-500.0,0.00011776,2]
[354023146,1740183066373,-500.0,0.00011776,2]
[354023147,1740183066382,-680.03,0.00011776,2]
[354023148,1740183066391,-500.0,0.00011776,2]
[354023149,1740183066402,-500.0,0.00011776,2]
[354023150,1740183066411,-1539.36,0.00011776,2]
[354023151,1740183066420,-500.0,0.00011776,2]
[354023152,1740183066430,-293.78669806,0.00011776,2]
[354023153,1740183066440,-500.0,0.00011776,2]
[354023154,1740183066449,-500.0,0.00011776,2]
[354023155,1740183066459,-500.0,0.00011776,2]
[354023156,1740183066469,-1475.55,0.00011776,2]
[354023157,1740183066479,-500.0,0.00011776,2]
[354023158,1740183066488,-500.0,0.00011776,2]
[354023159,1740183066498,-822.9,0.00011776,2]
[354023160,1740183066507,-500.0,0.00011776,2]
[354023161,1740183066516,-1076.85,0.00011776,2]
[354023162,1740183066525,-500.0,0.00011776,2]
[354023163,1740183066535,-500.0,0.00011776,2]
[354023164,1740183066545,-500.0,0.00011776,2]
[354023165,1740183066554,-1766.78,0.00011776,2]
[354023166,1740183066564,-3156.85,0.00011776,2]
[354023167,1740183066573,-500.0,0.00011776,2]
[354023168,1740183066582,-250.46,0.00011776,2]
[354023169,1740183066592,-732.58,0.00011776,2]
[354023170,1740183066602,-500.0,0.00011776,2]
[354023171,1740183066611,-676.08,0.00011776,2]
[354023172,1740183066621,-555.30596354,0.00011777,3]
[354023173,1740183066630,-500.0,0.00011777,2]
[354023174,1740183066686,-500.0,0.00011777,2]
[354023175,1740183066695,-500.0,0.00011777,2]
[354023176,1740183066704,-500.0,0.00011777,2]
[354023177,1740183066713,-500.0,0.00011777,2]
[354023178,1740183066725,-500.0,0.00011777,2]
[354023179,1740183066734,-500.0,0.00011777,2]
[354023180,1740183066743,-500.0,0.00011777,2]
[354023181,1740183066753,-598.32,0.00011777,2]
[354023182,1740183066762,-500.0,0.00011777,2]
[354023183,1740183066771,-500.0,0.00011777,2]
[354023184,1740183066779,-500.0,0.00011777,2]
[354023185,1740183066788,-500.0,0.00011777,2]
[354023186,1740183066798,-681.97,0.00011777,2]
[354023187,1740183066807,-500.0,0.00011777,2]
[354023188,1740183066816,-500.0,0.00011777,2]
[354023189,1740183066825,-500.0,0.00011777,2]
[354023190,1740183066834,-500.0,0.00011777,2]
[354023191,1740183066843,-500.0,0.00011777,2]
[354023192,1740183066852,-500.0,0.00011777,2]
[354023193,1740183066861,-500.0,0.00011777,2]
[354023194,1740183066871,-500.0,0.00011777,2]
[354023195,1740183066880,-500.0,0.00011777,2]
[354023196,1740183066889,-925.32,0.00011779,2]
[354023197,1740183066898,-500.0,0.00011779,2]
[354023198,1740183066906,-500.0,0.00011779,2]
[354023199,1740183066915,-981.73,0.00011779,2]
[354023200,1740183066925,-1225.91,0.00011779,2]
[354023201,1740183066934,-1000.0,0.00011779,2]
[354023202,1740183066943,-1219.38,0.00011779,2]
[354023203,1740183066953,-500.0,0.00011779,2]
[354023204,1740183066962,-1112.17,0.00011779,2]
[354023205,1740183066972,-1281.07,0.00011779,2]
[354023206,1740183066981,-500.0,0.00011779,2]
[354023207,1740183066991,-534.97,0.00011779,2]
[354023208,1740183067002,-1531.07,0.00011779,2]
[354023209,1740183067012,-500.0,0.0001178,2]
[354023210,1740183067023,-500.0,0.0001178,2]
[354023211,1740183067032,-500.0,0.0001178,2]
[354023212,1740183067041,-500.0,0.0001178,2]
[354023213,1740183067050,-500.0,0.0001178,2]
[354023214,1740183067061,-500.0,0.0001178,2]
[354023215,1740183067070,-500.0,0.0001178,2]
[354023216,1740183067080,-426.74,0.0001178,2]
[354023217,1740183067090,-327.52,0.0001178,2]
[354023218,1740183067101,-3200.0,0.000118,4]
[354023219,1740183067111,-500.0,0.00011857,2]
[354023220,1740183067120,-270.553652,0.00011857,2]
[354023221,1740183067129,-500.0,0.00011857,2]
[354023222,1740183067139,-1851.02,0.00011857,2]
[354023223,1740183067148,-500.0,0.00011857,2]
[354023224,1740183067157,-659.88,0.00011857,2]
[354023225,1740183067167,-500.0,0.00011857,2]
[354023226,1740183067175,-500.0,0.00011857,2]
[354023227,1740183067186,-500.0,0.00011857,2]
[354023228,1740183067195,-319.961925,0.00011857,2]
[354023229,1740183067205,-500.0,0.00011857,2]
[354023230,1740183067215,-674.0,0.00011857,2]
[354023231,1740183067224,-704.65,0.00011857,2]
[354023232,1740183067234,-662.23,0.00011857,2]
[354023233,1740183067244,-847.59,0.00011857,2]
[354023234,1740183067255,-780.91,0.00011857,2]
[354023235,1740183067264,-1102.75,0.00011857,2]
[354023236,1740183067274,-500.0,0.00011857,2]
[354023237,1740183067284,-546.67,0.00011857,2]
[354023238,1740183067294,-804.86,0.00011857,2]
[354023239,1740183067303,-1329.87,0.00011857,2]
[354023240,1740183067315,-656.74,0.00011857,2]
[354023241,1740183067324,-500.0,0.00011857,2]
[354023242,1740183067334,-1147.29,0.00011857,2]
[354023243,1740183067343,-901.63,0.00011857,2]
[354023244,1740183067352,-872.87,0.00011857,2]
[354023245,1740183067361,-500.0,0.00011857,2]
[354023246,1740183067371,-1312.42,0.00011857,2]
[354023247,1740183067380,-500.0,0.00011857,2]
[354023248,1740183067390,-2825.2,0.00011857,2]
[354023249,1740183067399,-793.93,0.00011857,2]
[354023250,1740183067408,-500.0,0.00011857,2]
[354023251,1740183067417,-500.0,0.00011857,2]
[354023252,1740183067426,-500.0,0.00011857,2]
[354023253,1740183067435,-500.0,0.00011857,2]
[354023254,1740183067444,-972.62,0.00011857,2]
[354023255,1740183067454,-500.0,0.00011857,2]
[354023256,1740183067463,-1570.12,0.00011857,2]
[354023257,1740183067473,-881.42,0.00011857,2]
[354023258,1740183067482,-1689.55,0.00011857,2]
[354023259,1740183067491,-1867.77,0.00011857,2]
[354023260,1740183067500,-918.01,0.00011857,2]
[354023261,1740183067509,-500.0,0.00011857,2]
[354023262,1740183067519,-1105.42,0.00011857,2]
[354023263,1740183067528,-904.45,0.00011857,2]
[354023264,1740183067537,-1060.54,0.00011857,2]
[354023265,1740183067546,-1773.75,0.00011857,2]
[354023266,1740183067555,-500.0,0.00011857,2]
[354023267,1740183067564,-500.0,0.00011857,2]
[354023268,1740183067573,-670.78,0.00011857,2]
[354023269,1740183067583,-1166.03,0.00011857,2]
[354023270,1740183067592,-697.16,0.00011857,2]
[354023271,1740183067601,-500.0,0.00011857,2]
[354023272,1740183067610,-607.72,0.00011857,2]
[354023273,1740183067619,-500.0,0.00011857,2]
[354023274,1740183067628,-336.7,0.00011857,2]
[354023275,1740183067637,-618.06,0.00011857,2]
[354023276,1740183067646,-500.0,0.00011858,2]
[354023277,1740183067655,-500.0,0.00011858,2]
[354023278,1740183067664,-500.0,0.00011858,2]
[354023279,1740183067673,-500.0,0.00011858,2]
[354023280,1740183067682,-500.0,0.00011858,2]
[354023281,1740183067691,-500.0,0.00011858,2]
[354023282,1740183067700,-500.0,0.00011858,2]
[354023283,1740183067709,-500.0,0.00011858,2]
[354023284,1740183067720,-500.0,0.00011858,2]
[354023285,1740183067729,-500.0,0.00011858,2]
[354023286,1740183067738,-500.0,0.00011858,2]
[354023287,1740183067748,-500.0,0.00011858,2]
[354023288,1740183067756,-500.0,0.00011858,2]
[354023289,1740183067766,-500.0,0.00011858,2]
[354023290,1740183067775,-500.0,0.00011858,2]
[354023291,1740183067784,-500.0,0.00011858,2]
[354023292,1740183067793,-508.96,0.00011858,2]
[354023293,1740183067801,-500.0,0.00011858,2]
[354023294,1740183067810,-615.21211147,0.00011858,2]
[354023295,1740183067819,-500.0,0.00011858,2]
[354023296,1740183067829,-500.0,0.00011858,2]
[354023297,1740183067837,-500.0,0.00011858,2]
[354023298,1740183067846,-500.0,0.00011858,2]
[354023299,1740183067855,-500.0,0.00011858,2]
[354023300,1740183067864,-500.0,0.00011858,2]
[354023301,1740183067873,-500.0,0.00011858,2]
[354023302,1740183067883,-500.0,0.00011858,2]
[354023303,1740183067894,-500.0,0.00011858,2]
[354023304,1740183067902,-500.0,0.00011858,2]
[354023305,1740183067913,-152.79148161,0.00011858,2]
[354023306,1740183067924,-500.0,0.00011858,2]
[354023307,1740183067933,-500.0,0.00011858,2]
[354023308,1740183067942,-500.0,0.00011858,2]
[354023309,1740183067952,-500.0,0.00011858,2]
[354023310,1740183067962,-500.0,0.00011858,2]
[354023311,1740183067971,-500.0,0.00011858,2]
[354023312,1740183067980,-500.0,0.00011858,2]
[354023313,1740183067989,-500.0,0.00011858,2]
[354023314,1740183067998,-500.0,0.00011858,2]
[354023315,1740183068007,-500.0,0.00011858,2]
[354023316,1740183068019,-500.0,0.00011858,2]
[354023317,1740183068028,-500.0,0.00011858,2]
[354023318,1740183068037,-500.0,0.00011858,2]
[354023319,1740183068046,-500.0,0.00011858,2]
[354023320,1740183068057,-209.52,0.00011858,2]
[354023321,1740183068066,-343.55,0.00011858,2]
[354023322,1740183068075,-500.0,0.00011858,2]
[354023323,1740183068084,-500.0,0.00011858,2]
[354023324,1740183068093,-500.0,0.00011858,2]
[354023325,1740183068103,-500.0,0.00011858,2]
[354023326,1740183068111,-500.0,0.00011858,2]
[354023327,1740183068120,-500.0,0.00011858,2]
[354023328,1740183068129,-500.0,0.00011858,2]
[354023329,1740183068138,-500.0,0.00011858,2]
[354023330,1740183068147,-500.0,0.00011858,2]
[354023331,1740183068156,-500.0,0.00011858,2]
[354023332,1740183068165,-500.0,0.00011858,2]
[354023333,1740183068175,-504.32,0.00011858,2]
[354023334,1740183068184,-500.0,0.00011858,2]
[354023335,1740183068194,-500.0,0.00011858,2]
[354023336,1740183068203,-500.0,0.00011858,2]
[354023337,1740183068212,-500.0,0.00011858,2]
[354023338,1740183068221,-500.0,0.00011858,2]
[354023339,1740183068231,-469.88,0.00011858,2]
[354023340,1740183068241,-672.25,0.00011858,2]
[354023341,1740183068251,-500.0,0.00011858,2]
[354023342,1740183068260,-529.12,0.00011858,2]
[354023343,1740183068270,-604.62,0.00011858,2]
[354023344,1740183068279,-914.39,0.00011858,2]
[354023345,1740183068288,-740.85,0.00011858,2]
[354023346,1740183068297,-201.4,0.00011858,2]
[354023347,1740183068307,-746.87,0.00011858,2]
[354023348,1740183068317,-500.0,0.00011858,2]
[354023349,1740183068326,-500.0,0.00011858,2]
[354023350,1740183068336,-500.0,0.00011858,2]
[354023351,1740183068346,-695.9,0.00011858,2]
[354023352,1740183068355,-500.0,0.00011858,2]
[354023353,1740183068365,-500.0,0.00011858,2]
[354023354,1740183068375,-500.0,0.00011858,2]
[354023355,1740183068384,-1020.33,0.00011858,2]
[354023356,1740183068393,-500.0,0.00011858,2]
[354023357,1740183068403,-500.0,0.00011858,2]
[354023358,1740183068412,-507.16,0.00011858,2]
[354023359,1740183068421,-500.0,0.00011858,2]
[354023360,1740183068431,-500.0,0.00011858,2]
[354023361,1740183068440,-795.59,0.00011858,2]
[354023362,1740183068451,-500.0,0.00011858,2]
[354023363,1740183068460,-669.24,0.00011858,2]
[354023364,1740183068469,-500.0,0.00011858,2]
[354023365,1740183068479,-500.0,0.00011858,2]
[354023366,1740183068488,-500.0,0.00011858,2]
[354023367,1740183068507,-1119.15,0.00011858,2]
[354023368,1740183068517,-500.0,0.00011858,2]
[354023369,1740183068526,-487.04,0.00011858,2]
[354023370,1740183068535,-543.65,0.00011858,2]
[354023371,1740183068545,-500.0,0.00011858,2]
[354023372,1740183068554,-500.0,0.00011858,2]
[354023373,1740183068563,-500.0,0.00011858,2]
[354023374,1740183068572,-500.0,0.00011858,2]
[354023375,1740183068581,-696.77,0.00011858,2]
[354023376,1740183068591,-515.61,0.00011858,2]
[354023377,1740183068600,-500.0,0.00011858,2]
[354023378,1740183068610,-500.0,0.00011858,2]
[354023379,1740183068619,-500.0,0.00011858,2]
[354023380,1740183068630,-500.0,0.00011858,2]
[354023381,1740183068640,-680.03,0.00011858,2]
[354023382,1740183068650,-500.0,0.00011858,2]
[354023383,1740183068660,-1539.36,0.00011858,2]
[354023384,1740183068669,-500.0,0.00011858,2]
[354023385,1740183068679,-500.0,0.00011858,2]
[354023386,1740183068688,-500.0,0.00011858,2]
[354023387,1740183068698,-1475.55,0.00011858,2]
[354023388,1740183068707,-500.0,0.00011858,2]
[354023389,1740183068716,-822.9,0.00011858,2]
[354023390,1740183068727,-500.0,0.00011858,2]
[354023391,1740183068736,-1076.85,0.00011858,2]
[354023392,1740183068747,-500.0,0.00011858,2]
[354023393,1740183068757,-500.0,0.00011858,2]
[354023394,1740183068767,-500.0,0.00011858,2]
[354023395,1740183068776,-1766.78,0.00011858,2]
[354023396,1740183068786,-3156.85,0.00011858,2]
[354023397,1740183068795,-500.0,0.00011858,2]
[354023398,1740183068805,-732.58,0.00011858,2]
[354023399,1740183068814,-569.647757,0.00011858,2]
[354023400,1740183068824,-676.08,0.00011858,2]
[354023401,1740183068833,-500.0,0.00011859,2]
[354023402,1740183068843,-500.0,0.00011859,2]
[354023403,1740183068852,-500.0,0.00011859,2]
[354023404,1740183068862,-500.0,0.00011859,2]
[354023405,1740183068871,-500.0,0.00011859,2]
[354023406,1740183068881,-500.0,0.00011859,2]
[354023407,1740183068890,-500.0,0.00011859,2]
[354023408,1740183068900,-500.0,0.00011859,2]
[354023409,1740183068910,-500.0,0.00011859,2]
[354023410,1740183068919,-500.0,0.00011859,2]
[354023411,1740183068931,-500.0,0.00011859,2]
[354023412,1740183068942,-500.0,0.00011859,2]
[354023413,1740183068953,-681.97,0.00011859,2]
[354023414,1740183068963,-500.0,0.00011859,2]
[354023415,1740183068973,-500.0,0.00011859,2]
[354023416,1740183068983,-500.0,0.00011859,2]
[354023417,1740183068993,-500.0,0.00011859,2]
[354023418,1740183069004,-500.0,0.00011859,2]
[354023419,1740183069016,-500.0,0.00011859,2]
[354023420,1740183069026,-500.0,0.00011859,2]
[354023421,1740183069035,-500.0,0.00011859,2]
[354023422,1740183069045,-500.0,0.00011859,2]
[354023423,1740183069057,-500.0,0.00011862,2]
[354023424,1740183069067,-500.0,0.00011862,2]
[354023425,1740183069078,-500.0,0.00011862,2]
[354023426,1740183069088,-183.6,0.00011862,2]
[354023427,1740183069099,-500.0,0.00011862,2]
[354023428,1740183069109,-500.0,0.00011862,2]
[354023429,1740183069119,-500.0,0.00011862,2]
[354023430,1740183069129,-925.32,0.00011862,2]
[354023431,1740183069138,-500.0,0.00011862,2]
[354023432,1740183069148,-500.0,0.00011862,2]
[354023433,1740183069157,-981.73,0.00011862,2]
[354023434,1740183069167,-1225.91,0.00011862,2]
[354023435,1740183069178,-1000.0,0.00011862,2]
[354023436,1740183069188,-1219.38,0.00011862,2]
[354023437,1740183069198,-500.0,0.00011862,2]
[354023438,1740183069208,-1112.17,0.00011862,2]
[354023439,1740183069218,-1281.07,0.00011862,2]
[354023440,1740183069228,-500.0,0.00011862,2]
[354023441,1740183069238,-534.97,0.00011862,2]
[354023442,1740183069248,-1531.07,0.00011862,2]
[354023443,1740183069258,-4300.0,0.000119,4]
[354023444,1740183069267,-158.97787741,0.00011915,2]
[354023445,1740183069277,-500.0,0.00011939,2]
[354023446,1740183069287,-270.553652,0.00011939,2]
[354023447,1740183069297,-500.0,0.00011939,2]
[354023448,1740183069306,-1851.02,0.00011939,2]
[354023449,1740183069316,-500.0,0.00011939,2]
[354023450,1740183069326,-659.88,0.00011939,2]
[354023451,1740183069336,-500.0,0.00011939,2]
[354023452,1740183069346,-419.18,0.00011939,2]
[354023453,1740183069356,-500.0,0.00011939,2]
[354023454,1740183069366,-319.961925,0.00011939,2]
[354023455,1740183069375,-500.0,0.00011939,2]
[354023456,1740183069384,-674.0,0.00011939,2]
[354023457,1740183069394,-704.65,0.00011939,2]
[354023458,1740183069404,-662.23,0.00011939,2]
[354023459,1740183069414,-847.59,0.00011939,2]
[354023460,1740183069424,-780.91,0.00011939,2]
[354023461,1740183069435,-1102.75,0.00011939,2]
[354023462,1740183069445,-500.0,0.00011939,2]
[354023463,1740183069454,-546.67,0.00011939,2]
[354023464,1740183069464,-804.86,0.00011939,2]
[354023465,1740183069474,-1329.87,0.00011939,2]
[354023466,1740183069484,-656.74,0.00011939,2]
[354023467,1740183069493,-500.0,0.00011939,2]
[354023468,1740183069505,-1147.29,0.00011939,2]
[354023469,1740183069514,-901.63,0.00011939,2]
[354023470,1740183069525,-872.87,0.00011939,2]
[354023471,1740183069535,-500.0,0.00011939,2]
[354023472,1740183069544,-1312.42,0.00011939,2]
[354023473,1740183069555,-500.0,0.00011939,2]
[354023474,1740183069565,-2825.2,0.00011939,2]
[354023475,1740183069574,-793.93,0.00011939,2]
[354023476,1740183069584,-500.0,0.00011939,2]
[354023477,1740183069594,-500.0,0.00011939,2]
[354023478,1740183069603,-500.0,0.00011939,2]
[354023479,1740183069613,-500.0,0.00011939,2]
[354023480,1740183069623,-972.62,0.00011939,2]
[354023481,1740183069631,-500.0,0.00011939,2]
[354023482,1740183069641,-1570.12,0.00011939,2]
[354023483,1740183069651,-881.42,0.00011939,2]
[354023484,1740183069660,-1689.55,0.00011939,2]
[354023485,1740183069671,-1867.77,0.00011939,2]
[354023486,1740183069680,-918.01,0.00011939,2]
[354023487,1740183069690,-500.0,0.00011939,2]
[354023488,1740183069700,-1105.42,0.00011939,2]
[354023489,1740183069710,-904.45,0.00011939,2]
[354023490,1740183069721,-1060.54,0.00011939,2]
[354023491,1740183069732,-1773.75,0.00011939,2]
[354023492,1740183069742,-500.0,0.00011939,2]
[354023493,1740183069752,-500.0,0.00011939,2]
[354023494,1740183069762,-670.78,0.00011939,2]
[354023495,1740183069773,-1166.03,0.00011939,2]
[354023496,1740183069782,-697.16,0.00011939,2]
[354023497,1740183069792,-500.0,0.00011939,2]
[354023498,1740183069802,-607.72,0.00011939,2]
[354023499,1740183069812,-500.0,0.00011939,2]
[354023500,1740183069822,-618.06,0.00011939,2]
[354023501,1740183069831,-500.0,0.0001194,2]
[354023502,1740183069840,-500.0,0.0001194,2]
[354023503,1740183069850,-500.0,0.0001194,2]
[354023504,1740183069860,-634.32,0.0001194,2]
[354023505,1740183069870,-500.0,0.0001194,2]
[354023506,1740183069879,-500.0,0.0001194,2]
[354023507,1740183069889,-500.0,0.0001194,2]
[354023508,1740183069898,-500.0,0.0001194,2]
[354023509,1740183069908,-500.0,0.0001194,2]
[354023510,1740183069918,-500.0,0.0001194,2]
[354023511,1740183069931,-500.0,0.0001194,2]
[354023512,1740183069940,-500.0,0.0001194,2]
[354023513,1740183069950,-500.0,0.0001194,2]
[354023514,1740183069959,-500.0,0.0001194,2]
[354023515,1740183069970,-500.0,0.0001194,2]
[354023516,1740183069980,-500.0,0.0001194,2]
[354023517,1740183069990,-500.0,0.0001194,2]
[354023518,1740183070004,-500.0,0.0001194,2]
[354023519,1740183070019,-500.0,0.0001194,2]
[354023520,1740183070029,-500.0,0.0001194,2]
[354023521,1740183070040,-500.0,0.0001194,2]
[354023522,1740183070051,-500.0,0.0001194,2]
[354023523,1740183070062,-500.0,0.0001194,2]
[354023524,1740183070071,-500.0,0.0001194,2]
[354023525,1740183070081,-500.0,0.0001194,2]
[354023526,1740183070094,-500.0,0.0001194,2]
[354023527,1740183070104,-500.0,0.0001194,2]
[354023528,1740183070114,-500.0,0.0001194,2]
[354023529,1740183070125,-500.0,0.0001194,2]
[354023530,1740183070134,-500.0,0.0001194,2]
[354023531,1740183070144,-160.95,0.0001194,2]
[354023532,1740183070154,-500.0,0.0001194,2]
[354023533,1740183070163,-500.0,0.0001194,2]
[354023534,1740183070173,-190.7,0.0001194,2]
[354023535,1740183070183,-500.0,0.0001194,2]
[354023536,1740183070192,-500.0,0.0001194,2]
[354023537,1740183070202,-500.0,0.0001194,2]
[354023538,1740183070212,-420.25,0.0001194,2]
[354023539,1740183070222,-500.0,0.0001194,2]
[354023540,1740183070232,-416.19974152,0.0001194,2]
[354023541,1740183070242,-367.1,0.0001194,2]
[354023542,1740183070252,-500.0,0.0001194,2]
[354023543,1740183070261,-500.0,0.0001194,2]
[354023544,1740183070270,-500.0,0.0001194,2]
[354023545,1740183070280,-500.0,0.0001194,2]
[354023546,1740183070290,-500.0,0.0001194,2]
[354023547,1740183070300,-500.0,0.0001194,2]
[354023548,1740183070310,-286.8,0.0001194,2]
[354023549,1740183070320,-500.0,0.0001194,2]
[354023550,1740183070329,-500.0,0.0001194,2]
[354023551,1740183070339,-500.0,0.0001194,2]
[354023552,1740183070348,-500.0,0.0001194,2]
[354023553,1740183070358,-672.25,0.0001194,2]
[354023554,1740183070368,-500.0,0.0001194,2]
[354023555,1740183070377,-604.62,0.0001194,2]
[354023556,1740183070387,-914.39,0.0001194,2]
[354023557,1740183070397,-740.85,0.0001194,2]
[354023558,1740183070406,-746.87,0.0001194,2]
[354023559,1740183070416,-500.0,0.0001194,2]
[354023560,1740183070426,-500.0,0.0001194,2]
[354023561,1740183070436,-500.0,0.0001194,2]
[354023562,1740183070446,-695.9,0.0001194,2]
[354023563,1740183070455,-500.0,0.0001194,2]
[354023564,1740183070466,-500.0,0.0001194,2]
[354023565,1740183070476,-500.0,0.0001194,2]
[354023566,1740183070486,-1020.33,0.0001194,2]
[354023567,1740183070496,-500.0,0.0001194,2]
[354023568,1740183070506,-500.0,0.0001194,2]
[354023569,1740183070516,-507.16,0.0001194,2]
[354023570,1740183070526,-500.0,0.0001194,2]
[354023571,1740183070535,-795.59,0.0001194,2]
[354023572,1740183070545,-500.0,0.0001194,2]
[354023573,1740183070554,-669.24,0.0001194,2]
[354023574,1740183070565,-500.0,0.0001194,2]
[354023575,1740183070574,-520.15,0.0001194,2]
[354023576,1740183070584,-500.0,0.0001194,2]
[354023577,1740183070593,-1119.15,0.0001194,2]
[354023578,1740183070604,-500.0,0.0001194,2]
[354023579,1740183070613,-543.65,0.0001194,2]
[354023580,1740183070623,-327.96,0.0001194,2]
[354023581,1740183070633,-500.0,0.0001194,2]
[354023582,1740183070643,-500.0,0.0001194,2]
[354023583,1740183070652,-374.48,0.0001194,2]
[354023584,1740183070662,-696.77,0.0001194,2]
[354023585,1740183070673,-515.61,0.0001194,2]
[354023586,1740183070682,-433.28,0.0001194,2]
[354023587,1740183070692,-500.0,0.0001194,2]
[354023588,1740183070702,-680.03,0.0001194,2]
[354023589,1740183070712,-500.0,0.0001194,2]
[354023590,1740183070722,-1539.36,0.0001194,2]
[354023591,1740183070732,-500.0,0.0001194,2]
[354023592,1740183070743,-500.0,0.0001194,2]
[354023593,1740183070754,-500.0,0.0001194,2]
[354023594,1740183070933,-1475.55,0.0001194,2]
[354023595,1740183070944,-500.0,0.0001194,2]
[354023596,1740183070954,-822.9,0.0001194,2]
[354023597,1740183070963,-500.0,0.0001194,2]
[354023598,1740183070974,-1076.85,0.0001194,2]
[354023599,1740183070983,-500.0,0.0001194,2]
[354023600,1740183070994,-500.0,0.0001194,2]
[354023601,1740183071004,-500.0,0.0001194,2]
[354023602,1740183071019,-1766.78,0.0001194,2]
[354023603,1740183071029,-3156.85,0.0001194,2]
[354023604,1740183071038,-500.0,0.0001194,2]
[354023605,1740183071048,-732.58,0.0001194,2]
[354023606,1740183071059,-676.08,0.0001194,2]
[354023607,1740183071068,-339.36537198,0.00011941,2]
[354023608,1740183071078,-500.0,0.00011941,2]
[354023609,1740183071088,-500.0,0.00011941,2]
[354023610,1740183071098,-500.0,0.00011941,2]
[354023611,1740183071108,-500.0,0.00011941,2]
[354023612,1740183071117,-500.0,0.00011941,2]
[354023613,1740183071127,-500.0,0.00011941,2]